[Event "*** Titled Tuesday 3|2 Blitz"]
[Site "Chess.com"]
[Date "2016.06.07"]
[Round "9"]
[White "Rumpel-VK"]
[Black "rdclayton"]
[Result "0-1"]
[WhiteElo "2408"]
[BlackElo "2077"]
[TimeControl "180+2"]
[EndTime "12:52:27 PDT"]
[Termination "rdclayton won by checkmate"]

1. b3 {[%clk 0:02:57.8]} 1... e5 {[%clk 0:02:59.7]} 2. Bb2 {[%clk 0:02:59.7]}
2... Nc6 {[%clk 0:03:00.9]} 3. e3 {[%clk 0:03:01]} 3... d5 {[%clk 0:03:01.5]} 4.
Bb5 {[%clk 0:03:01.6]} 4... Bd6 {[%clk 0:03:03]} 5. f4 {[%clk 0:02:57.1]} 5...
f6 {[%clk 0:03:03.9]} 6. fxe5 {[%clk 0:02:57]} 6... fxe5 {[%clk 0:03:05.8]} 7.
Nf3 {[%clk 0:02:57.5]} 7... Qe7 {[%clk 0:02:41]} 8. Bxc6+ {[%clk 0:02:57.7]}
8... bxc6 {[%clk 0:02:41.3]} 9. Nxe5 {[%clk 0:02:59.6]} 9... Qh4+ {[%clk
0:02:34.6]} 10. g3 {[%clk 0:02:59.9]} 10... Qg5 {[%clk 0:02:08.2]} 11. Nf3
{[%clk 0:02:56.2]} 11... Qh5 {[%clk 0:02:07.7]} 12. Ne5 {[%clk 0:02:53.8]} 12...
Qg5 {[%clk 0:02:07.8]} 13. Nf3 {[%clk 0:02:54.5]} 13... Qh5 {[%clk 0:02:08.6]}
14. O-O {[%clk 0:02:52.9]} 14... Nf6 {[%clk 0:02:05.3]} 15. d3 {[%clk
0:02:41.8]} 15... Bh3 {[%clk 0:01:56.8]} 16. Nbd2 {[%clk 0:02:39.9]} 16... Bxf1
{[%clk 0:01:46.4]} 17. Qxf1 {[%clk 0:02:41.8]} 17... O-O {[%clk 0:01:47.2]} 18.
Qg2 {[%clk 0:02:41.9]} 18... Rae8 {[%clk 0:01:46.1]} 19. Re1 {[%clk 0:02:42]}
19... Ng4 {[%clk 0:01:45.4]} 20. Nf1 {[%clk 0:02:38.4]} 20... Bc5 {[%clk
0:01:43.5]} 21. Bd4 {[%clk 0:02:36.6]} 21... Bxd4 {[%clk 0:01:44]} 22. Nxd4
{[%clk 0:02:36.6]} 22... Rf2 {[%clk 0:01:31.3]} 23. Qxf2 {[%clk 0:02:35.3]}
23... Nxf2 {[%clk 0:01:33.2]} 24. Kxf2 {[%clk 0:02:35.6]} 24... c5 {[%clk
0:01:28.1]} 25. Ne2 {[%clk 0:02:36.2]} 25... Rf8+ {[%clk 0:01:27]} 26. Kg1
{[%clk 0:02:36.2]} 26... Qf3 {[%clk 0:01:25.2]} 27. Nf4 {[%clk 0:02:37]} 27...
c6 {[%clk 0:00:52.7]} 28. e4 {[%clk 0:02:36.2]} 28... g5 {[%clk 0:00:48.6]} 29.
Nd2 {[%clk 0:02:34.9]} 29... Qg4 {[%clk 0:00:48.3]} 30. Ng2 {[%clk 0:02:35.3]}
30... h5 {[%clk 0:00:40]} 31. Ne3 {[%clk 0:02:28.4]} 31... Qe6 {[%clk
0:00:38.1]} 32. Ng2 {[%clk 0:02:24.7]} 32... h4 {[%clk 0:00:34.8]} 33. exd5
{[%clk 0:02:24.6]} 33... Qh3 {[%clk 0:00:27.4]} 34. gxh4 {[%clk 0:02:22.1]}
34... gxh4 {[%clk 0:00:25.5]} 35. dxc6 {[%clk 0:02:22.1]} 35... Qg4 {[%clk
0:00:25]} 36. Kh1 {[%clk 0:02:12.8]} 36... h3 {[%clk 0:00:20]} 37. Ne3 {[%clk
0:02:13.6]} 37... Qf4 {[%clk 0:00:20]} 38. Rg1+ {[%clk 0:02:02.5]} 38... Kh8
{[%clk 0:00:17.8]} 39. Rf1 {[%clk 0:02:03.9]} 39... Qxe3 {[%clk 0:00:15.8]} 40.
Rxf8+ {[%clk 0:02:03.9]} 40... Kg7 {[%clk 0:00:17.3]} 41. c7 {[%clk 0:02:01.2]}
41... Qxd2 {[%clk 0:00:16.8]} 42. Rg8+ {[%clk 0:02:00.6]} 42... Kf6 {[%clk
0:00:13.7]} 43. Rf8+ {[%clk 0:01:52.1]} 43... Ke5 {[%clk 0:00:14.3]} 44. d4+
{[%clk 0:01:51.5]} 44... Kd6 {[%clk 0:00:11.7]} 45. Kg1 {[%clk 0:01:42.2]} 45...
Qg2# {[%clk 0:00:10.8]} 0-1

[Event "*** Titled Tuesday 3|2 Blitz"]
[Site "Chess.com"]
[Date "2016.06.07"]
[Round "9"]
[White "Zazuliak"]
[Black "bugsbunny444"]
[Result "1-0"]
[WhiteElo "2369"]
[BlackElo "2359"]
[TimeControl "180+2"]
[EndTime "12:52:33 PDT"]
[Termination "Zazuliak won on time"]

1. d4 {[%clk 0:03:00.4]} 1... e6 {[%clk 0:02:58.9]} 2. c4 {[%clk 0:03:01.2]}
2... b6 {[%clk 0:03:00.3]} 3. Nc3 {[%clk 0:03:02.2]} 3... Bb7 {[%clk 0:03:01.9]}
4. Nf3 {[%clk 0:03:01.4]} 4... f5 {[%clk 0:03:02.7]} 5. Bf4 {[%clk 0:03:01.9]}
5... Nf6 {[%clk 0:03:03.7]} 6. g3 {[%clk 0:03:02.6]} 6... Bb4 {[%clk 0:03:01.2]}
7. Bg2 {[%clk 0:03:03.3]} 7... O-O {[%clk 0:02:57.9]} 8. O-O {[%clk 0:03:03.9]}
8... Bxc3 {[%clk 0:02:55.7]} 9. bxc3 {[%clk 0:03:04.6]} 9... Nc6 {[%clk
0:02:10.8]} 10. Ne5 {[%clk 0:03:03.7]} 10... Na5 {[%clk 0:02:10.2]} 11. Bxb7
{[%clk 0:03:03.5]} 11... Nxb7 {[%clk 0:02:11.9]} 12. Qa4 {[%clk 0:03:01]} 12...
d6 {[%clk 0:02:06.8]} 13. Nd3 {[%clk 0:02:55.5]} 13... Qd7 {[%clk 0:02:01.3]}
14. Qb5 {[%clk 0:02:49.1]} 14... a6 {[%clk 0:01:35.1]} 15. Qb4 {[%clk
0:02:49.3]} 15... Qc6 {[%clk 0:01:21.3]} 16. a4 {[%clk 0:02:34.8]} 16... Na5
{[%clk 0:01:21.6]} 17. Nb2 {[%clk 0:02:35.2]} 17... Rfe8 {[%clk 0:00:54.3]} 18.
Rfd1 {[%clk 0:02:34]} 18... Nd7 {[%clk 0:00:46.1]} 19. Rac1 {[%clk 0:02:21.1]}
19... e5 {[%clk 0:00:45]} 20. Be3 {[%clk 0:02:16.2]} 20... g6 {[%clk 0:00:37.6]}
21. f3 {[%clk 0:02:16.6]} 21... Re7 {[%clk 0:00:22.1]} 22. Bg5 {[%clk
0:02:14.7]} 22... Rf7 {[%clk 0:00:21.7]} 23. Be3 {[%clk 0:02:09.9]} 23... Re8
{[%clk 0:00:22.1]} 24. Bf2 {[%clk 0:02:10.5]} 24... e4 {[%clk 0:00:21.7]} 25. d5
{[%clk 0:01:51.3]} 25... Qb7 {[%clk 0:00:22.4]} 26. Bd4 {[%clk 0:01:51.7]} 26...
Qc8 {[%clk 0:00:16.1]} 27. f4 {[%clk 0:01:48.5]} 27... Nb7 {[%clk 0:00:16.8]}
28. e3 {[%clk 0:01:49.2]} 28... a5 {[%clk 0:00:17.2]} 29. Qb3 {[%clk 0:01:48.6]}
29... Nbc5 {[%clk 0:00:16.6]} 30. Qc2 {[%clk 0:01:49.9]} 30... Ree7 {[%clk
0:00:14.2]} 31. Rd2 {[%clk 0:01:50.8]} 31... Qe8 {[%clk 0:00:14.9]} 32. Rf1
{[%clk 0:01:51.3]} 32... h6 {[%clk 0:00:16.2]} 33. Rg2 {[%clk 0:01:51.5]} 33...
Kh7 {[%clk 0:00:17.4]} 34. h4 {[%clk 0:01:51.6]} 34... Nf6 {[%clk 0:00:13.6]}
35. Nd1 {[%clk 0:01:45.9]} 35... Qxa4 {[%clk 0:00:10.6]} 36. Qxa4 {[%clk
0:01:46.5]} 36... Nxa4 {[%clk 0:00:12]} 37. Nf2 {[%clk 0:01:47.8]} 37... Nc5
{[%clk 0:00:11]} 38. Ra1 {[%clk 0:01:47.9]} 38... h5 {[%clk 0:00:11.3]} 39. Nh3
{[%clk 0:01:48.3]} 39... Kg8 {[%clk 0:00:10.5]} 40. Ng5 {[%clk 0:01:50.2]} 40...
Rf8 {[%clk 0:00:11.3]} 41. Bxc5 {[%clk 0:01:50.7]} 41... dxc5 {[%clk 0:00:10.8]}
42. Kf2 {[%clk 0:01:51.5]} 42... Ra8 {[%clk 0:00:07.7]} 43. Ke2 {[%clk
0:01:51.5]} 43... Ne8 {[%clk 0:00:08.7]} 44. Ne6 {[%clk 0:01:48.8]} 1-0

[Event "*** Titled Tuesday 3|2 Blitz"]
[Site "Chess.com"]
[Date "2016.06.07"]
[Round "9"]
[White "jeaston1"]
[Black "akinov-akinseye"]
[Result "1-0"]
[WhiteElo "2024"]
[BlackElo "1714"]
[TimeControl "180+2"]
[EndTime "12:52:55 PDT"]
[Termination "jeaston1 won by resignation"]

1. d4 {[%clk 0:03:01.9]} 1... d5 {[%clk 0:02:57.9]} 2. c4 {[%clk 0:03:03.2]}
2... e6 {[%clk 0:02:56.4]} 3. Nc3 {[%clk 0:03:04.6]} 3... Nf6 {[%clk 0:02:55.8]}
4. cxd5 {[%clk 0:03:05.7]} 4... exd5 {[%clk 0:02:55.2]} 5. Bg5 {[%clk
0:03:07.2]} 5... Be7 {[%clk 0:02:52]} 6. e3 {[%clk 0:03:08.5]} 6... O-O {[%clk
0:02:52.3]} 7. Bd3 {[%clk 0:03:09.3]} 7... c6 {[%clk 0:02:52.2]} 8. Nge2 {[%clk
0:03:10.4]} 8... Bg4 {[%clk 0:02:49.7]} 9. O-O {[%clk 0:03:10.3]} 9... Nbd7
{[%clk 0:02:49.6]} 10. f3 {[%clk 0:03:10.7]} 10... Bh5 {[%clk 0:02:50.8]} 11.
Qc2 {[%clk 0:03:09.3]} 11... Bg6 {[%clk 0:02:50.8]} 12. e4 {[%clk 0:02:59]}
12... dxe4 {[%clk 0:02:50.2]} 13. fxe4 {[%clk 0:02:59.8]} 13... Ne8 {[%clk
0:02:33.2]} 14. Bxe7 {[%clk 0:03:00.4]} 14... Qxe7 {[%clk 0:02:32.5]} 15. e5
{[%clk 0:02:54.5]} 15... Bxd3 {[%clk 0:02:31.8]} 16. Qxd3 {[%clk 0:02:55.9]}
16... Nc7 {[%clk 0:02:27.1]} 17. Rf3 {[%clk 0:02:56.3]} 17... Nd5 {[%clk
0:02:26.2]} 18. Rh3 {[%clk 0:02:56.6]} 18... g6 {[%clk 0:02:18.5]} 19. Ne4
{[%clk 0:02:53.3]} 19... f5 {[%clk 0:02:11.3]} 20. Nd6 {[%clk 0:02:46.9]} 20...
Rab8 {[%clk 0:02:04]} 21. Rf1 {[%clk 0:02:30]} 21... N7b6 {[%clk 0:01:55.4]} 22.
Nf4 {[%clk 0:02:25.9]} 22... Nxf4 {[%clk 0:01:55.2]} 23. Rxf4 {[%clk 0:02:26.6]}
23... Nc8 {[%clk 0:01:49.5]} 24. Rfh4 {[%clk 0:02:15.2]} 24... Nxd6 {[%clk
0:01:35.2]} 25. exd6 {[%clk 0:02:14.8]} 25... Qd7 {[%clk 0:01:32.7]} 26. Qb3+
{[%clk 0:01:50.3]} 26... Kh8 {[%clk 0:01:32.4]} 27. Rxh7+ {[%clk 0:01:49.7]}
27... Qxh7 {[%clk 0:01:32.6]} 28. Qe6 {[%clk 0:01:39.1]} 28... Qxh3 {[%clk
0:01:30.1]} 29. gxh3 {[%clk 0:01:39]} 29... Kg7 {[%clk 0:01:26.2]} 30. d7 {[%clk
0:01:37.6]} 30... Rbd8 {[%clk 0:01:25.3]} 31. Qe5+ {[%clk 0:01:33.8]} 31... Kg8
{[%clk 0:01:24.1]} 32. Qc7 {[%clk 0:01:28.2]} 32... Kf7 {[%clk 0:01:23]} 33.
Qxb7 {[%clk 0:01:28.5]} 33... Ke7 {[%clk 0:01:23.9]} 34. Qxa7 {[%clk 0:01:26.3]}
34... Rxd7 {[%clk 0:01:24.9]} 35. Qc5+ {[%clk 0:01:27.8]} 35... Rd6 {[%clk
0:01:24.7]} 36. a4 {[%clk 0:01:25.2]} 36... Rd8 {[%clk 0:01:23.9]} 37. a5 {[%clk
0:01:25.1]} 37... Kf7 {[%clk 0:01:22.1]} 38. Qc4+ {[%clk 0:01:09.7]} 38... Kf6
{[%clk 0:01:19.9]} 39. a6 {[%clk 0:01:08.1]} 39... Rxd4 {[%clk 0:01:20.9]} 40.
Qxc6+ {[%clk 0:01:09]} 40... R8d6 {[%clk 0:01:21]} 41. Qc3 {[%clk 0:01:08.9]}
41... Ke5 {[%clk 0:01:21.9]} 42. a7 {[%clk 0:01:09.5]} 42... Rd8 {[%clk
0:01:06.2]} 43. Qe3+ {[%clk 0:00:46.6]} 43... Kf6 {[%clk 0:01:03.9]} 44. Qxd4+
{[%clk 0:00:45]} 44... Rxd4 {[%clk 0:01:03.7]} 45. a8=Q {[%clk 0:00:46.2]} 45...
Rd1+ {[%clk 0:01:02]} 46. Kf2 {[%clk 0:00:47]} 46... Rd2+ {[%clk 0:01:02.8]} 47.
Kg3 {[%clk 0:00:48]} 47... Rxb2 {[%clk 0:01:03.5]} 48. Qh8+ {[%clk 0:00:48.5]}
1-0

[Event "*** Titled Tuesday 3|2 Blitz"]
[Site "Chess.com"]
[Date "2016.06.07"]
[Round "9"]
[White "Journey_to_GrandMaster_YT"]
[Black "Dlugy"]
[Result "0-1"]
[WhiteElo "2362"]
[BlackElo "2593"]
[TimeControl "180+2"]
[EndTime "12:53:07 PDT"]
[Termination "Dlugy won by resignation"]

1. d4 {[%clk 0:03:01.9]} 1... Nf6 {[%clk 0:03:00.1]} 2. c4 {[%clk 0:03:02.2]}
2... g6 {[%clk 0:03:01]} 3. Nc3 {[%clk 0:03:01.4]} 3... Bg7 {[%clk 0:03:02]} 4.
e4 {[%clk 0:03:02.4]} 4... d6 {[%clk 0:03:03.7]} 5. Nf3 {[%clk 0:03:03.6]} 5...
O-O {[%clk 0:03:05.2]} 6. Be2 {[%clk 0:03:04.7]} 6... e5 {[%clk 0:03:06.9]} 7.
O-O {[%clk 0:03:05.5]} 7... exd4 {[%clk 0:03:07.8]} 8. Nxd4 {[%clk 0:03:05.7]}
8... Re8 {[%clk 0:03:09.7]} 9. f3 {[%clk 0:03:05.9]} 9... c6 {[%clk 0:03:11.2]}
10. Kh1 {[%clk 0:03:05.2]} 10... Nbd7 {[%clk 0:03:11]} 11. Bg5 {[%clk
0:03:05.1]} 11... Qb6 {[%clk 0:03:09.2]} 12. Nb3 {[%clk 0:03:04.8]} 12... a5
{[%clk 0:03:09.8]} 13. Qd2 {[%clk 0:03:05.2]} 13... a4 {[%clk 0:03:10.7]} 14.
Be3 {[%clk 0:03:04.9]} 14... Qc7 {[%clk 0:03:10.5]} 15. Nd4 {[%clk 0:03:05.2]}
15... Nc5 {[%clk 0:02:55.3]} 16. Rfd1 {[%clk 0:03:03.7]} 16... Nh5 {[%clk
0:02:54.5]} 17. Rab1 {[%clk 0:02:51.6]} 17... Qe7 {[%clk 0:02:55.1]} 18. b4
{[%clk 0:02:40.9]} 18... axb3 {[%clk 0:02:55.5]} 19. axb3 {[%clk 0:02:42]} 19...
Qh4 {[%clk 0:02:56]} 20. Kg1 {[%clk 0:02:30.4]} 20... Be5 {[%clk 0:02:56.6]} 21.
f4 {[%clk 0:01:47.2]} 21... Nxf4 {[%clk 0:02:56.3]} 22. Nf3 {[%clk 0:01:19.1]}
22... Bxc3 {[%clk 0:02:50.8]} 23. Nxh4 {[%clk 0:01:15.1]} 23... Bxd2 {[%clk
0:02:51.3]} 24. Rxd2 {[%clk 0:01:15.4]} 24... Nxe2+ {[%clk 0:02:52]} 25. Rxe2
{[%clk 0:01:14.3]} 25... Rxe4 {[%clk 0:02:53.6]} 26. Nf3 {[%clk 0:01:13.9]}
26... Bg4 {[%clk 0:02:52.1]} 27. b4 {[%clk 0:01:03.8]} 27... Ne6 {[%clk
0:02:37.9]} 28. Kf2 {[%clk 0:01:00.7]} 28... Rxc4 {[%clk 0:02:35]} 29. b5 {[%clk
0:01:00]} 29... c5 {[%clk 0:02:22.6]} 30. Rd1 {[%clk 0:00:58.3]} 30... Rd8
{[%clk 0:02:19.4]} 31. Rb2 {[%clk 0:00:35.3]} 31... Bxf3 {[%clk 0:02:17.2]} 32.
gxf3 {[%clk 0:00:34.8]} 32... d5 {[%clk 0:02:18.7]} 33. Ra1 {[%clk 0:00:29.2]}
33... d4 {[%clk 0:02:08.3]} 34. Bd2 {[%clk 0:00:30.2]} 34... d3 {[%clk
0:02:08.2]} 35. Ra7 {[%clk 0:00:26.4]} 35... Rc2 {[%clk 0:02:09.2]} 36. Rxc2
{[%clk 0:00:22.6]} 36... dxc2 {[%clk 0:02:10.2]} 37. Be3 {[%clk 0:00:23.6]}
37... f5 {[%clk 0:02:01.1]} 38. Rxb7 {[%clk 0:00:21.2]} 38... f4 {[%clk
0:02:02.5]} 39. Bc1 {[%clk 0:00:21.5]} 39... Rd1 {[%clk 0:02:03.5]} 40. Bb2
{[%clk 0:00:22.1]} 40... Rb1 {[%clk 0:02:03.8]} 41. Rb8+ {[%clk 0:00:21.8]}
41... Kf7 {[%clk 0:02:04.9]} 42. Rb7+ {[%clk 0:00:22.7]} 42... Ke8 {[%clk
0:02:06]} 43. Ba3 {[%clk 0:00:18.4]} 43... c1=Q {[%clk 0:02:01.4]} 44. Bxc1
{[%clk 0:00:19.3]} 44... Rxc1 {[%clk 0:02:03]} 45. Rxh7 {[%clk 0:00:21.1]} 45...
Rc2+ {[%clk 0:02:04.6]} 46. Kf1 {[%clk 0:00:20.6]} 46... Rb2 {[%clk 0:02:04.8]}
47. Rh6 {[%clk 0:00:19.4]} 47... Kf7 {[%clk 0:02:05.6]} 48. Rh7+ {[%clk
0:00:20.6]} 48... Ng7 {[%clk 0:02:06.3]} 49. Rh4 {[%clk 0:00:21.4]} 49... g5
{[%clk 0:02:07.5]} 50. Rh8 {[%clk 0:00:21.9]} 50... Rxb5 {[%clk 0:02:08.3]} 51.
Rc8 {[%clk 0:00:22.7]} 51... Ne6 {[%clk 0:02:08.7]} 52. Kg2 {[%clk 0:00:20]}
52... Rb3 {[%clk 0:02:06.5]} 53. Rc6 {[%clk 0:00:18]} 53... Ke7 {[%clk
0:02:06.3]} 54. Rc8 {[%clk 0:00:18.3]} 54... Kd7 {[%clk 0:02:07.5]} 55. Rg8
{[%clk 0:00:17.4]} 55... c4 {[%clk 0:02:08.3]} 56. Ra8 {[%clk 0:00:17.3]} 56...
c3 {[%clk 0:02:09.1]} 57. Ra1 {[%clk 0:00:16.7]} 57... c2 {[%clk 0:02:08.8]} 58.
Rc1 {[%clk 0:00:16.7]} 58... Nd4 {[%clk 0:02:10.4]} 59. Kh3 {[%clk 0:00:16.3]}
59... Ke6 {[%clk 0:02:10]} 60. Kg4 {[%clk 0:00:17.5]} 60... Kf6 {[%clk 0:02:11]}
61. h4 {[%clk 0:00:17.7]} 61... gxh4 {[%clk 0:02:12.1]} 62. Kxf4 {[%clk
0:00:18.8]} 62... Ne2+ {[%clk 0:02:12.9]} 0-1

[Event "*** Titled Tuesday 3|2 Blitz"]
[Site "Chess.com"]
[Date "2016.06.07"]
[Round "9"]
[White "talaicito"]
[Black "norwaytoadog"]
[Result "0-1"]
[WhiteElo "1919"]
[BlackElo "2040"]
[TimeControl "180+2"]
[EndTime "12:53:14 PDT"]
[Termination "norwaytoadog won by resignation"]

1. e4 {[%clk 0:03:01.9]} 1... e5 {[%clk 0:02:59.8]} 2. Nf3 {[%clk 0:03:02.8]}
2... Nc6 {[%clk 0:03:00.5]} 3. Bb5 {[%clk 0:03:02.8]} 3... a6 {[%clk 0:03:01.3]}
4. Bxc6 {[%clk 0:03:03.3]} 4... dxc6 {[%clk 0:03:01.6]} 5. d4 {[%clk 0:03:03.9]}
5... exd4 {[%clk 0:03:01.5]} 6. Qxd4 {[%clk 0:03:05.4]} 6... Qxd4 {[%clk
0:02:57.6]} 7. Nxd4 {[%clk 0:03:06.9]} 7... Bd7 {[%clk 0:02:55.2]} 8. Be3 {[%clk
0:02:59.5]} 8... O-O-O {[%clk 0:02:55.8]} 9. Nd2 {[%clk 0:03:01]} 9... g6 {[%clk
0:02:49.8]} 10. N2b3 {[%clk 0:02:47.7]} 10... c5 {[%clk 0:02:45.9]} 11. Nf3
{[%clk 0:02:43.3]} 11... Bg7 {[%clk 0:02:36.5]} 12. c3 {[%clk 0:02:13.3]} 12...
b6 {[%clk 0:02:34.3]} 13. Ng5 {[%clk 0:02:03]} 13... Nh6 {[%clk 0:02:30.5]} 14.
O-O-O {[%clk 0:01:59.5]} 14... Rhe8 {[%clk 0:02:30.7]} 15. f3 {[%clk 0:01:56]}
15... f6 {[%clk 0:02:28.6]} 16. Nh3 {[%clk 0:01:26.8]} 16... Bxh3 {[%clk
0:02:16.3]} 17. gxh3 {[%clk 0:01:26.8]} 17... f5 {[%clk 0:02:16.2]} 18. Bg5
{[%clk 0:01:10.8]} 18... Rxd1+ {[%clk 0:02:15]} 19. Rxd1 {[%clk 0:01:11.7]}
19... fxe4 {[%clk 0:02:14.7]} 20. fxe4 {[%clk 0:01:12.1]} 20... Rxe4 {[%clk
0:02:09.7]} 21. Rd8+ {[%clk 0:01:12]} 21... Kb7 {[%clk 0:02:10.1]} 22. Rd7
{[%clk 0:01:13.1]} 22... Nf5 {[%clk 0:02:04.9]} 23. Nd2 {[%clk 0:00:57.4]} 23...
Re1+ {[%clk 0:02:04.1]} 24. Kc2 {[%clk 0:00:57.7]} 24... h6 {[%clk 0:02:03.4]}
25. Bf4 {[%clk 0:00:56.2]} 25... Be5 {[%clk 0:02:00.1]} 26. Nf3 {[%clk
0:00:42.9]} 26... Ne3+ {[%clk 0:01:46.5]} 27. Kd2 {[%clk 0:00:33.9]} 27... Rd1+
{[%clk 0:01:29]} 28. Kxe3 {[%clk 0:00:34.8]} 28... Bxf4+ {[%clk 0:01:29.4]} 29.
Kxf4 {[%clk 0:00:33.6]} 29... Rxd7 {[%clk 0:01:30.1]} 30. Ne5 {[%clk 0:00:34.3]}
30... Rd6 {[%clk 0:01:28.1]} 31. h4 {[%clk 0:00:33.3]} 31... Rf6+ {[%clk
0:01:28.4]} 32. Kg3 {[%clk 0:00:31.1]} 32... Re6 {[%clk 0:01:24.8]} 33. Kf4
{[%clk 0:00:25.7]} 33... Rf6+ {[%clk 0:01:25.5]} 34. Kg3 {[%clk 0:00:26.4]}
34... b5 {[%clk 0:01:26.3]} 35. Ng4 {[%clk 0:00:24.4]} 35... Rf1 {[%clk
0:01:23.2]} 36. Nxh6 {[%clk 0:00:24.7]} 36... b4 {[%clk 0:01:23.2]} 37. Ng4
{[%clk 0:00:24]} 37... bxc3 {[%clk 0:01:22.1]} 38. bxc3 {[%clk 0:00:24.3]} 38...
Rc1 {[%clk 0:01:22.5]} 39. Ne5 {[%clk 0:00:23.4]} 39... Rxc3+ {[%clk 0:01:23]}
40. Kg4 {[%clk 0:00:23.7]} 40... Rc2 {[%clk 0:01:22.3]} 41. Nxg6 {[%clk
0:00:20.1]} 41... Rxh2 {[%clk 0:01:12.1]} 42. h5 {[%clk 0:00:20.4]} 42... c4
{[%clk 0:01:11.5]} 43. Nh4 {[%clk 0:00:19.8]} 43... c3 {[%clk 0:01:09.9]} 44. h6
{[%clk 0:00:20.9]} 44... Rd2 {[%clk 0:00:58.8]} 45. h7 {[%clk 0:00:17.9]} 45...
Rd8 {[%clk 0:00:59.3]} 46. Ng6 {[%clk 0:00:03.1]} 46... c2 {[%clk 0:00:59.2]}
47. Nf8 {[%clk 0:00:02.4]} 47... Rxf8 {[%clk 0:00:58.5]} 0-1

[Event "*** Titled Tuesday 3|2 Blitz"]
[Site "Chess.com"]
[Date "2016.06.07"]
[Round "9"]
[White "andretta"]
[Black "ItalianMachine"]
[Result "1/2-1/2"]
[WhiteElo "2160"]
[BlackElo "2318"]
[TimeControl "180+2"]
[EndTime "12:53:29 PDT"]
[Termination "Game drawn by agreement"]

1. b3 {[%clk 0:03:01.9]} 1... e5 {[%clk 0:02:56.8]} 2. Bb2 {[%clk 0:03:03.8]}
2... d6 {[%clk 0:02:58.3]} 3. g3 {[%clk 0:03:02.4]} 3... g6 {[%clk 0:02:59.5]}
4. Bg2 {[%clk 0:02:37.4]} 4... Bg7 {[%clk 0:03:00.5]} 5. Nf3 {[%clk 0:02:36.4]}
5... c5 {[%clk 0:02:59.7]} 6. O-O {[%clk 0:02:35.9]} 6... Nc6 {[%clk 0:03:00.3]}
7. e3 {[%clk 0:02:33.7]} 7... Nge7 {[%clk 0:03:01.3]} 8. c3 {[%clk 0:02:20.4]}
8... O-O {[%clk 0:02:52.9]} 9. d4 {[%clk 0:02:15.9]} 9... cxd4 {[%clk
0:02:50.1]} 10. cxd4 {[%clk 0:02:06.7]} 10... Bg4 {[%clk 0:02:50.7]} 11. Qd3
{[%clk 0:02:03.3]} 11... f5 {[%clk 0:02:43.2]} 12. dxe5 {[%clk 0:02:00.5]} 12...
Bxf3 {[%clk 0:02:42.3]} 13. Bxf3 {[%clk 0:02:00.9]} 13... Nxe5 {[%clk
0:02:43.5]} 14. Bxe5 {[%clk 0:01:58.1]} 14... Bxe5 {[%clk 0:02:44.5]} 15. Nc3
{[%clk 0:01:54.2]} 15... Rc8 {[%clk 0:02:44.5]} 16. Rac1 {[%clk 0:01:52.5]}
16... Qa5 {[%clk 0:02:39.5]} 17. Nd5 {[%clk 0:01:48.2]} 17... Nxd5 {[%clk
0:02:33.3]} 18. Bxd5+ {[%clk 0:01:43.2]} 18... Kh8 {[%clk 0:02:34.3]} 19. Bxb7
{[%clk 0:01:38.7]} 19... Rxc1 {[%clk 0:02:28.8]} 20. Rxc1 {[%clk 0:01:40.6]}
20... Qxa2 {[%clk 0:02:29.2]} 21. Rc2 {[%clk 0:01:35.2]} 21... Qa1+ {[%clk
0:02:20.3]} 22. Kg2 {[%clk 0:01:32.8]} 22... Qa5 {[%clk 0:02:13.4]} 23. Bd5
{[%clk 0:01:30.5]} 23... Qb6 {[%clk 0:02:10.9]} 24. Rc6 {[%clk 0:01:28.2]} 24...
Qb4 {[%clk 0:02:10.6]} 25. Qa6 {[%clk 0:01:25.4]} 25... Qb8 {[%clk 0:02:04.1]}
26. Qa4 {[%clk 0:01:19.7]} 26... h5 {[%clk 0:02:02.1]} 27. Ra6 {[%clk
0:01:14.1]} 27... g5 {[%clk 0:01:51]} 28. Rxa7 {[%clk 0:01:10.8]} 28... Qe8
{[%clk 0:01:36]} 29. Qxe8 {[%clk 0:01:04.6]} 29... Rxe8 {[%clk 0:01:37.3]} 30.
Ra8 {[%clk 0:00:58]} 30... Rxa8 {[%clk 0:01:37.8]} 31. Bxa8 {[%clk 0:00:59.5]}
31... Kg7 {[%clk 0:01:39]} 32. b4 {[%clk 0:00:49.7]} 32... Bc3 {[%clk
0:01:39.5]} 33. b5 {[%clk 0:00:46.5]} 33... Ba5 {[%clk 0:01:41.4]} 34. h4 {[%clk
0:00:41.1]} 34... Kg6 {[%clk 0:01:30]} 35. Bd5 {[%clk 0:00:38.2]} 35... gxh4
{[%clk 0:01:28.9]} 36. gxh4 {[%clk 0:00:38.7]} 36... Kf6 {[%clk 0:01:27.4]} 37.
Bc6 {[%clk 0:00:35.3]} 37... Bd8 {[%clk 0:01:08.4]} 38. Be8 {[%clk 0:00:32]}
38... Kg7 {[%clk 0:01:04.8]} 39. Bxh5 {[%clk 0:00:32.6]} 39... Bxh4 {[%clk
0:01:05]} 40. Kf3 {[%clk 0:00:33.7]} 40... Bd8 {[%clk 0:01:02.3]} 41. Be8 {[%clk
0:00:33.3]} 41... Kf6 {[%clk 0:01:03.5]} 42. Bd7 {[%clk 0:00:33.9]} 42... Ke5
{[%clk 0:01:04.5]} 43. Bc8 {[%clk 0:00:33.3]} 43... Bb6 {[%clk 0:01:05.5]} 44.
Ke2 {[%clk 0:00:33.6]} 44... d5 {[%clk 0:01:05.3]} 45. f3 {[%clk 0:00:34.8]}
45... f4 {[%clk 0:01:06]} 46. exf4+ {[%clk 0:00:33.5]} 46... Kxf4 {[%clk
0:01:07.3]} 47. Be6 {[%clk 0:00:30.9]} 47... Ke5 {[%clk 0:01:08.2]} 48. Bg4
{[%clk 0:00:29.4]} 48... Bc5 {[%clk 0:01:08.3]} 49. Kd3 {[%clk 0:00:29.8]} 49...
Bb6 {[%clk 0:01:09.5]} 50. Bd7 {[%clk 0:00:28.4]} 50... Bc5 {[%clk 0:01:10.6]}
51. Bc6 {[%clk 0:00:29.6]} 51... Bb6 {[%clk 0:01:11.5]} 52. Kc3 {[%clk 0:00:30]}
52... Bc5 {[%clk 0:01:12.4]} 53. Kb3 {[%clk 0:00:31.1]} 53... Kd4 {[%clk
0:01:09.6]} 54. f4 {[%clk 0:00:31.3]} 54... Ke4 {[%clk 0:01:10.8]} 55. f5 {[%clk
0:00:31.6]} 55... Kxf5 {[%clk 0:01:10.9]} 56. Bxd5 {[%clk 0:00:32.3]} 56... Bg1
{[%clk 0:01:12.8]} 57. Kc4 {[%clk 0:00:31]} 57... Kf6 {[%clk 0:01:14.1]} 58. Be4
{[%clk 0:00:32.2]} 58... Kg5 {[%clk 0:01:15.2]} 59. Kd5 {[%clk 0:00:33.2]} 59...
Kf4 {[%clk 0:01:16.3]} 60. Bc2 {[%clk 0:00:33.6]} 60... Kg5 {[%clk 0:01:17.4]}
1/2-1/2